Workbook

Sheet بيانات
A1: مسلسل | B1: الاسم | C1: رقم الصرف | D1: الرقم القومي | E1: جهه العمل | F1: الكود المؤسسي
A2: 1 | B2: موظف1 | C2: 123456 | D2: 29911122601111 | E2: جهه1 | F2: 99887766
A3: 2 | B3: موظف2 | C3: =+C2+1 -> 123457 | D3: =+D2+1 -> 29911122601112 | E3: جهه2 | F3: =+F2+1 -> 99887767
A4: 3 | B4: موظف3 | C4: =+C3+1 -> 123458 | D4: 29911122601113 | E4: جهه3 | F4: =+F3+1 -> 99887768
A5: 4 | B5: موظف4 | C5: 123459 | D5: 29911122601114 | E5: جهه4 | F5: 99887769
A6: 5 | B6: موظف5 | C6: 123460 | D6: 29911122601115 | E6: جهه5 | F6: 99887770
A7: 6 | B7: موظف6 | C7: 123461 | D7: 29911122601116 | E7: جهه6 | F7: 99887771
A8: 7 | B8: موظف7 | C8: 123462 | D8: 29911122601117 | E8: جهه7 | F8: 99887772
A9: 8 | B9: موظف8 | C9: 123463 | D9: 29911122601118 | E9: جهه8 | F9: 99887773
A10: 9 | B10: موظف9 | C10: 123464 | D10: 29911122601119 | E10: جهه9 | F10: 99887774
A11: 10 | B11: موظف10 | C11: 123465 | D11: 29911122601120 | E11: جهه10 | F11: 99887775
A12: 11 | B12: موظف11 | C12: 123466 | D12: 29911122601121 | E12: جهه11 | F12: 99887776
A13: 12 | B13: موظف12 | C13: 123467 | D13: 29911122601122 | E13: جهه12 | F13: 99887777
A14: 13 | B14: موظف13 | C14: 123468 | D14: 29911122601123 | E14: جهه13 | F14: 99887778
A15: 14 | B15: موظف14 | C15: 123469 | D15: 29911122601124 | E15: جهه14 | F15: 99887779
A16: 15 | B16: موظف15 | C16: 123470 | D16: 29911122601125 | E16: جهه15 | F16: 99887780
A17: 16 | B17: موظف16 | C17: 123471 | D17: 29911122601126 | E17: جهه16 | F17: 99887781
A18: 17 | B18: موظف17 | C18: 0 | D18: 0 | E18: جهه17 | F18: 0

Sheet الحافز
A4: مسلسل | B4: رقم الصرف | C4: الاسم | D4: الرقم القومي | E4: جهه العمل | F4: الكود المؤسسي | G4: اسم المستخدم | H4: المبلغ
A5: 1 | B5: =IFERROR(VLOOKUP($C5,بيانات!$B$2:$C$1700,2,0),"") -> 123463 | C5: موظف8 | D5: =IFERROR(VLOOKUP(C5,بيانات!$B$2:$D$1700,3,0),"") -> 29911122601118 | E5: جهه3 | F5: =IFERROR(VLOOKUP($E5,بيانات!E2:$F$1700,2,0),"") -> 99887768
A6: 2 | B6: =IFERROR(VLOOKUP($C6,بيانات!$B$2:$C$1700,2,0),"") -> 123456 | C6: موظف1 | D6: =IFERROR(VLOOKUP(C6,بيانات!$B$2:$D$1700,3,0),"") -> 29911122601111 | E6: جهه7 | F6: =IFERROR(VLOOKUP($E6,بيانات!E3:$F$1700,2,0),"") -> 99887772
A7: 3 | B7: =IFERROR(VLOOKUP($C7,بيانات!$B$2:$C$1700,2,0),"") -> 123464 | C7: موظف9 | D7: =IFERROR(VLOOKUP(C7,بيانات!$B$2:$D$1700,3,0),"") -> 29911122601119 | F7: =IFERROR(VLOOKUP($E7,بيانات!E4:$F$1700,2,0),"") -> 
A8: 4 | B8: =IFERROR(VLOOKUP($C8,بيانات!$B$2:$C$1700,2,0),"") -> 123467 | C8: موظف12 | D8: =IFERROR(VLOOKUP(C8,بيانات!$B$2:$D$1700,3,0),"") -> 29911122601122 | F8: =IFERROR(VLOOKUP($E8,بيانات!E5:$F$1700,2,0),"") -> 
A9: 5 | B9: =IFERROR(VLOOKUP($C9,بيانات!$B$2:$C$1700,2,0),"") -> 123461 | C9: موظف6 | D9: =IFERROR(VLOOKUP(C9,بيانات!$B$2:$D$1700,3,0),"") -> 29911122601116 | E9: جهه11 | F9: =IFERROR(VLOOKUP($E9,بيانات!E6:$F$1700,2,0),"") -> 99887776
A10: 6 | B10: =IFERROR(VLOOKUP($C10,بيانات!$B$2:$C$1700,2,0),"") -> 123465 | C10: موظف10 | D10: =IFERROR(VLOOKUP(C10,بيانات!$B$2:$D$1700,3,0),"") -> 29911122601120 | F10: =IFERROR(VLOOKUP($E10,بيانات!E7:$F$1700,2,0),"") -> 
A11: 7 | B11: =IFERROR(VLOOKUP($C11,بيانات!$B$2:$C$1700,2,0),"") ->  | D11: =IFERROR(VLOOKUP(C11,بيانات!$B$2:$D$1700,3,0),"") ->  | F11: =IFERROR(VLOOKUP($E11,بيانات!E8:$F$1700,2,0),"") -> 
A12: 8 | B12: =IFERROR(VLOOKUP($C12,بيانات!$B$2:$C$1700,2,0),"") ->  | D12: =IFERROR(VLOOKUP(C12,بيانات!$B$2:$D$1700,3,0),"") ->  | F12: =IFERROR(VLOOKUP($E12,بيانات!E9:$F$1700,2,0),"") -> 
A13: 9 | B13: =IFERROR(VLOOKUP($C13,بيانات!$B$2:$C$1700,2,0),"") ->  | D13: =IFERROR(VLOOKUP(C13,بيانات!$B$2:$D$1700,3,0),"") ->  | F13: =IFERROR(VLOOKUP($E13,بيانات!E10:$F$1700,2,0),"") -> 
A14: 10 | B14: =IFERROR(VLOOKUP($C14,بيانات!$B$2:$C$1700,2,0),"") ->  | D14: =IFERROR(VLOOKUP(C14,بيانات!$B$2:$D$1700,3,0),"") ->  | F14: =IFERROR(VLOOKUP($E14,بيانات!E11:$F$1700,2,0),"") -> 
A15: 11 | B15: =IFERROR(VLOOKUP($C15,بيانات!$B$2:$C$1700,2,0),"") ->  | D15: =IFERROR(VLOOKUP(C15,بيانات!$B$2:$D$1700,3,0),"") ->  | F15: =IFERROR(VLOOKUP($E15,بيانات!E12:$F$1700,2,0),"") -> 
A16: 12 | B16: =IFERROR(VLOOKUP($C16,بيانات!$B$2:$C$1700,2,0),"") ->  | D16: =IFERROR(VLOOKUP(C16,بيانات!$B$2:$D$1700,3,0),"") ->  | F16: =IFERROR(VLOOKUP($E16,بيانات!E13:$F$1700,2,0),"") -> 
A17: 13 | B17: =IFERROR(VLOOKUP($C17,بيانات!$B$2:$C$1700,2,0),"") ->  | D17: =IFERROR(VLOOKUP(C17,بيانات!$B$2:$D$1700,3,0),"") ->  | F17: =IFERROR(VLOOKUP($E17,بيانات!E14:$F$1700,2,0),"") -> 
A18: 14 | B18: =IFERROR(VLOOKUP($C18,بيانات!$B$2:$C$1700,2,0),"") ->  | D18: =IFERROR(VLOOKUP(C18,بيانات!$B$2:$D$1700,3,0),"") ->  | F18: =IFERROR(VLOOKUP($E18,بيانات!E15:$F$1700,2,0),"") -> 
A19: 15 | B19: =IFERROR(VLOOKUP($C19,بيانات!$B$2:$C$1700,2,0),"") ->  | D19: =IFERROR(VLOOKUP(C19,بيانات!$B$2:$D$1700,3,0),"") ->  | F19: =IFERROR(VLOOKUP($E19,بيانات!E16:$F$1700,2,0),"") -> 
